bitfinex/quotes_SOLUSD_20250514
["timestamp","ask_amount","ask_price","bid_price","bid_amount"]
[1747242701551,5.71037003,175.12,175.1,28.09941231]
[1747242701748,5.71037003,175.12,175.08,29.68071231]
[1747242701749,19.9862951,175.12,175.08,29.68071231]
[1747242701919,48.08570741,175.12,175.08,29.68071231]
[1747242702125,28.09941231,175.09,175.04,29.63361231]
[1747242702349,28.09941231,175.07,175.0,51.04954886]
[1747242702553,28.09941231,175.06,175.0,6.3999]
[1747242702763,28.09941231,175.06,175.01,28.09941231]
[1747242703253,138.2,175.08,175.02,28.09941231]
[1747242703254,28.09941231,175.07,175.02,28.09941231]
[1747242703457,166.29941231,175.06,175.01,28.09941231]
[1747242703745,19.99428733,175.05,175.01,28.09941231]
[1747242704703,48.09369964,175.05,175.0,34.49931231]
[1747242705158,48.09369964,175.05,175.0,28.09941231]
[1747242705337,28.09941231,175.03,174.98,1.5342]
[1747242705527,28.09941231,175.03,175.0,28.09941231]
[1747242705528,5.71330629,175.03,175.0,28.09941231]
[1747242706725,19.99657201,175.03,174.99,28.09941231]
[1747242707729,28.09941231,175.0,174.95,28.09941231]
[1747242707931,28.09941231,174.98,174.94,1.6501]
[1747242708128,164.2,175.02,174.95,28.09941231]
[1747242708346,138.2,175.01,175.0,28.09941231]
[1747242708941,5.71395391,175.02,175.0,28.09941231]
[1747242709141,5.71395391,175.02,175.01,28.09941231]
[1747242709759,5.71395391,175.02,174.99,28.09941231]
[1747242711171,19.99657201,175.03,174.94,1.6501]
[1747242711464,19.99657201,175.03,174.99,28.09941231]
[1747242711663,48.09598432,175.03,174.99,28.09941231]
[1747242711869,19.99657201,175.03,174.99,28.09941231]
[1747242714462,48.09598432,175.03,174.99,28.09941231]
[1747242714659,138.2,175.02,174.98,28.09941231]
[1747242714868,138.2,175.02,174.99,28.09941231]
[1747242715666,5.7139592,175.01,174.99,28.09941231]
[1747242715966,19.9988572,175.01,174.97,28.09941231]
[1747242716372,48.09826951,175.01,174.94,47.3901]
[1747242716577,28.09941231,174.99,174.94,29.74951231]
[1747242716781,28.09941231,174.98,174.94,1.6501]
[1747242717275,28.09941231,174.99,174.94,29.74951231]
[1747242717641,48.10169828,174.98,174.93,28.09941231]
[1747242717846,20.00228597,174.98,174.94,28.09941231]
[1747242718151,20.00228597,174.98,174.9,27.9431]
[1747242718152,20.00228597,174.98,174.95,28.09941231]
[1747242719158,14.28734712,174.98,174.95,28.09941231]
[1747242719358,5.71461226,174.99,174.96,28.09941231]
[1747242719576,5.71461226,174.99,174.98,28.09941231]
[1747242719961,5.71461226,174.99,174.92,26.0]
[1747242720158,5.71461226,174.99,174.98,28.09941231]
[1747242721046,5.7139592,175.01,174.98,28.09941231]
[1747242721680,19.9988572,175.01,174.97,28.09941231]
[1747242721850,19.9988572,175.01,174.96,28.09941231]
[1747242721851,48.09826951,175.01,174.96,28.09941231]
[1747242722185,28.09941231,174.99,174.94,28.09941231]
[1747242722385,28.09941231,174.97,174.92,28.09941231]
[1747242722545,28.09941231,174.97,174.9,8.2031]
[1747242722743,28.09941231,174.95,174.91,28.09941231]
[1747242722951,5.71657234,174.93,174.89,28.09941231]
[1747242724480,8.60686479,174.93,174.89,28.09941231]
[1747242724677,28.09941231,174.92,174.87,47.83941231]
[1747242724894,22.89829564,174.93,174.86,1.6178]
[1747242724895,28.09941231,174.91,174.86,28.09941231]
[1747242725386,28.09941231,174.91,174.85,6.385]
[1747242725387,28.09941231,174.91,174.87,28.09941231]
[1747242726188,28.09941231,174.89,174.82,1.5722]
[1747242726508,28.09941231,174.87,174.82,29.67161231]
[1747242726692,138.2,174.88,174.84,28.09941231]
[1747242726879,138.2,174.88,174.85,28.09941231]
[1747242727267,138.2,174.88,174.87,28.09941231]
[1747242727398,138.2,174.92,174.87,28.09941231]
[1747242727712,138.2,174.92,174.82,27.03224069]
[1747242727877,138.2,174.92,174.89,28.09941231]
[1747242728073,143.91694666,174.92,174.89,28.09941231]
[1747242728395,143.91694666,174.92,174.88,28.09941231]
[1747242728703,143.91694666,174.92,174.82,21.3122]
[1747242728704,172.01635897,174.92,174.82,21.3122]
[1747242728889,166.29941231,174.91,174.86,28.09941231]
[1747242729206,138.2,174.91,174.83,19.66]
[1747242729389,138.2,174.91,174.89,28.09941231]
[1747242729587,138.2,174.91,174.9,28.09941231]
[1747242729790,2.86996568,174.95,174.9,28.09941231]
[1747242730014,157.94,174.99,174.92,28.09941231]
[1747242730015,183.94,174.99,174.92,28.09941231]
[1747242730304,33.81496332,174.97,174.92,28.09941231]
[1747242730604,33.81496332,174.97,174.93,28.09941231]
[1747242730605,5.71555101,174.97,174.93,28.09941231]
[1747242730906,5.71555101,174.97,174.9,5.7174634]
[1747242730907,143.91502763,174.98,174.95,28.09941231]
[1747242731079,143.91502763,174.98,174.94,28.09941231]
[1747242731883,146.71212456,174.98,174.94,28.09941231]
[1747242732089,146.71212456,174.98,174.91,1.5964]
[1747242732090,174.81153687,174.98,174.93,28.09941231]
[1747242732385,174.81153687,174.98,174.91,1.5964]
[1747242732587,174.81153687,174.98,174.93,28.09941231]
[1747242732924,174.81153687,174.98,174.91,1.5964]
[1747242733217,174.81153687,174.98,174.93,28.09941231]
[1747242733575,5.71559213,174.96,174.92,28.09941231]
[1747242733775,5.71532167,174.97,174.93,28.09941231]
[1747242734277,146.71209864,174.98,174.94,28.09941231]
[1747242734480,146.71209864,174.98,174.91,1.5964]
[1747242734704,146.71209864,174.98,174.94,28.09941231]
[1747242735897,146.71209864,174.98,174.95,28.09941231]
[1747242736601,146.71209864,174.98,174.94,28.09941231]
[1747242736813,28.09941231,174.97,174.91,1.5964]
[1747242737111,28.09941231,174.96,174.91,28.09941231]
[1747242738017,5.71591883,174.95,174.91,28.09941231]
[1747242738384,5.71591883,174.95,174.89,28.09941231]
[1747242738385,28.09941231,174.94,174.89,28.09941231]
[1747242738603,28.09941231,174.92,174.87,28.09941231]
[1747242739280,138.2,174.91,174.87,28.09941231]
[1747242739503,138.2,174.91,174.9,28.09941231]
[1747242739814,20.00571591,174.95,174.85,19.62]
[1747242740018,42.38920939,174.95,174.9,28.09941231]
[1747242740312,28.09941231,174.92,174.88,28.09941231]
[1747242740486,42.38920939,174.95,174.9,28.09941231]
[1747242740689,14.28979708,174.95,174.91,28.09941231]
[1747242741025,14.28979708,174.95,174.89,28.09941231]
[1747242741203,28.09941231,174.94,174.89,28.09941231]
[1747242741404,28.09941231,174.93,174.89,28.09941231]
[1747242741604,28.09941231,174.92,174.87,28.09941231]
[1747242741919,138.2,174.94,174.88,28.09941231]
[1747242742223,138.2,174.94,174.83,27.2995]
[1747242742224,28.09941231,174.92,174.84,19.82]
[1747242742473,166.29941231,174.91,174.86,28.09941231]
[1747242742626,166.29941231,174.91,174.83,47.0995]
[1747242742627,28.09941231,174.89,174.85,28.09941231]
[1747242742966,28.09941231,174.89,174.84,28.09941231]
[1747242743260,28.09941231,174.88,174.83,28.09941231]
[1747242744139,5.71853376,174.87,174.83,28.09941231]
[1747242744543,20.01486817,174.87,174.83,28.09941231]
[1747242744934,20.01486817,174.87,174.81,12.002165]
[1747242744935,186.31428048,174.87,174.81,12.002165]
[1747242745138,28.09941231,174.86,174.81,12.002165]
[1747242745339,158.21486817,174.87,174.81,12.002165]
[1747242745340,28.09941231,174.85,174.81,12.002165]
[1747242745526,28.09941231,174.84,174.81,12.002165]
[1747242745752,28.09941231,174.85,174.81,12.002165]
[1747242746155,5.71951498,174.84,174.81,12.002165]
[1747242746593,5.71951498,174.84,174.81,40.10157731]
[1747242746789,5.71951498,174.84,174.81,12.002165]
[1747242747350,5.71951498,174.84,174.82,28.09941231]
[1747242747552,5.7188608,174.86,174.82,28.09941231]
[1747242747760,5.7188608,174.86,174.83,28.09941231]
[1747242748264,33.81827311,174.86,174.81,40.10157731]
[1747242748462,48.11542511,174.86,174.81,40.10157731]
[1747242748670,138.2,174.85,174.81,40.10157731]
[1747242748875,28.09941231,174.84,174.81,12.002165]
[1747242749361,28.09941231,174.82,174.81,12.002165]
[1747242749569,164.2,174.85,174.81,12.002165]
[1747242749763,28.09941231,174.82,174.81,12.002165]
[1747242750180,33.81958162,174.82,174.81,12.002165]
[1747242750483,33.81958162,174.82,174.81,12.40071572]
[1747242750654,52.46923048,174.82,174.81,12.40071572]
[1747242750856,26.0,174.79,174.74,0.5]
[1747242751056,28.09941231,174.75,174.74,0.5]
[1747242751663,47.97941231,174.78,174.74,0.5]
[1747242751664,19.88,174.78,174.74,0.5]
[1747242751865,28.09941231,174.76,174.74,0.5]
[1747242752154,33.82187296,174.75,174.74,0.5]
[1747242752885,36.63512862,174.75,174.74,0.5]
[1747242753085,5.72246065,174.75,174.74,0.5]
[1747242753388,34.32187296,174.75,174.74,0.5]
[1747242753596,48.6280246,174.75,174.69,28.09941231]
[1747242753767,20.52861229,174.75,174.71,28.09941231]
[1747242753967,6.22246065,174.75,174.72,28.09941231]
[1747242754186,6.22246065,174.75,174.66,5.72540936]
[1747242754367,6.22246065,174.75,174.72,28.09941231]
[1747242754792,34.32187296,174.75,174.71,28.09941231]
[1747242754968,34.32187296,174.75,174.65,0.43601231]
[1747242754969,28.09941231,174.73,174.65,0.43601231]
[1747242755290,48.1280246,174.75,174.7,28.09941231]
[1747242755468,33.82187296,174.75,174.71,28.09941231]
[1747242755672,5.72246065,174.75,174.65,24.81128593]
[1747242755862,5.72246065,174.75,174.71,28.09941231]
[1747242756062,48.1280246,174.75,174.65,24.81128593]
[1747242756294,28.09941231,174.74,174.69,28.09941231]
[1747242756604,48.1280246,174.75,174.7,28.09941231]
[1747242756790,48.1280246,174.75,174.65,6.16167003]
[1747242756974,48.1280246,174.75,174.65,0.43601231]
[1747242757325,28.09941231,174.73,174.69,28.09941231]
[1747242757494,28.09941231,174.73,174.68,28.09941231]
[1747242757673,166.29941231,174.72,174.67,28.09941231]
[1747242757872,166.29941231,174.72,174.63,20.24]
[1747242758104,28.09941231,174.7,174.62,4.65452563]
[1747242758397,158.23319787,174.71,174.67,28.09941231]
[1747242758570,138.2,174.7,174.68,28.09941231]
[1747242758770,138.2,174.7,174.69,28.09941231]
[1747242759768,138.2,174.77,174.69,56.19882462]
[1747242759988,138.2,174.77,174.74,28.09941231]
[1747242760179,5.7218058,174.77,174.74,28.09941231]
[1747242760670,5.7218058,174.77,174.69,5.72435599]
[1747242760893,5.7218058,174.77,174.75,28.09941231]
[1747242761106,143.92153976,174.78,174.76,28.09941231]
[1747242761293,143.92153976,174.78,174.77,28.09941231]
[1747242761908,143.92153976,174.78,174.76,28.09941231]
[1747242762094,158.22523583,174.78,174.75,28.09941231]
[1747242762796,158.22523583,174.78,174.73,28.09941231]
[1747242762985,138.2,174.77,174.73,28.09941231]
[1747242763187,28.09941231,174.75,174.7,28.09941231]
[1747242763514,28.09941231,174.73,174.66,8.139]
[1747242763818,28.09941231,174.73,174.69,28.09941231]
[1747242764119,28.09941231,174.7,174.62,7.6289]
[1747242764616,28.09941231,174.71,174.67,28.09941231]
[1747242764913,138.2,174.7,174.67,28.09941231]
[1747242766093,5.72442612,174.69,174.66,28.09941231]
[1747242766422,33.82383843,174.69,174.58,26.9909]
[1747242766586,138.2,174.68,174.64,28.09941231]
[1747242767193,166.29941231,174.68,174.58,26.9909]
[1747242767516,138.2,174.67,174.64,28.09941231]
[1747242768090,143.92533894,174.67,174.59,24.37710235]
[1747242768295,143.92533894,174.67,174.65,28.09941231]
[1747242768524,143.92533894,174.67,174.58,27.2109]
[1747242768819,0.5,174.66,174.62,28.09941231]
[1747242769009,0.5,174.66,174.64,28.09941231]
[1747242769215,0.5,174.66,174.6,28.09941231]
[1747242769216,0.5,174.66,174.65,28.09941231]
[1747242769915,5.72533894,174.67,174.65,28.09941231]
[1747242770115,5.72442612,174.69,174.65,28.09941231]
[1747242771217,5.72442612,174.69,174.66,28.09941231]
[1747242771423,5.72418089,174.7,174.68,28.09941231]
[1747242771624,5.72418089,174.7,174.66,28.09941231]
[1747242772091,28.09941231,174.69,174.63,20.68]
[1747242772416,5.72475383,174.68,174.63,20.68]
[1747242772603,5.72475383,174.68,174.65,28.09941231]
[1747242774025,5.72475383,174.68,174.66,28.09941231]
[1747242774193,5.72442612,174.69,174.67,28.09941231]
[1747242774522,166.29941231,174.71,174.68,28.09941231]
[1747242774523,5.72418102,174.7,174.68,28.09941231]
[1747242774721,138.2,174.71,174.69,28.09941231]
[1747242774904,138.2,174.71,174.7,28.09941231]
[1747242775109,5.72317797,174.73,174.7,28.09941231]
[1747242775305,5.72246065,174.75,174.72,28.09941231]
[1747242775510,5.72246065,174.75,174.69,28.09941231]
[1747242775511,5.72246065,174.75,174.74,28.09941231]
[1747242775715,5.7218058,174.77,174.74,28.09941231]
[1747242776023,5.72115109,174.79,174.76,28.09941231]
[1747242776222,5.72082379,174.8,174.78,28.09941231]
[1747242776793,5.72059349,174.81,174.78,28.09941231]
[1747242777015,5.72059349,174.81,174.79,28.09941231]
[1747242777229,5.72059349,174.81,174.8,28.09941231]
[1747242777520,38.39297798,174.82,174.79,28.09941231]
[1747242777521,44.1131769,174.82,174.79,28.09941231]
[1747242777702,44.1131769,174.82,174.78,28.09941231]
[1747242778218,28.09941231,174.81,174.76,28.09941231]
[1747242779000,0.5,174.8,174.76,28.09941231]
[1747242779490,28.59941231,174.8,174.76,28.09941231]
[1747242779695,28.09941231,174.79,174.72,20.62]
[1747242779998,28.09941231,174.77,174.73,28.09941231]
[1747242780326,5.72213321,174.76,174.71,6.3113]
[1747242780631,5.72213321,174.76,174.74,28.09941231]
[1747242780807,5.72213321,174.76,174.71,6.3113]
[1747242781124,5.72213321,174.76,174.73,28.09941231]
[1747242781500,5.72213321,174.76,174.74,28.09941231]
[1747242781707,5.72115109,174.79,174.75,28.09941231]
[1747242782011,5.72115109,174.79,174.76,28.09941231]
[1747242782412,5.72115109,174.79,174.78,28.09941231]
[1747242782823,5.72115109,174.79,174.72,18.64964886]
[1747242783004,5.72115109,174.79,174.77,28.09941231]
[1747242784094,0.5,174.78,174.77,28.09941231]
[1747242784408,5.72115109,174.79,174.77,28.09941231]
[1747242785112,44.11345898,174.82,174.78,28.09941231]
[1747242785313,44.11345898,174.82,174.8,28.09941231]
[1747242785504,44.11345898,174.82,174.79,28.09941231]
[1747242786023,38.39297798,174.82,174.81,28.09941231]
[1747242786795,5.71918787,174.85,174.81,28.09941231]
[1747242787035,5.71918787,174.85,174.83,28.09941231]
[1747242787694,20.01715755,174.85,174.76,20.78]
[1747242787895,20.01715755,174.85,174.81,28.09941231]
[1747242788136,48.11656986,174.85,174.81,28.09941231]
[1747242788300,20.01715755,174.85,174.81,28.09941231]
[1747242789030,0.5,174.84,174.81,28.09941231]
[1747242789233,0.5,174.84,174.83,28.09941231]
[1747242789529,5.71918787,174.85,174.83,28.09941231]
[1747242789706,5.71918787,174.85,174.82,28.09941231]
[1747242790123,48.11656986,174.85,174.81,28.09941231]
[1747242790501,48.11656986,174.85,174.76,20.78]
[1747242790717,48.11656986,174.85,174.8,28.09941231]
[1747242791021,48.11656986,174.85,174.81,28.09941231]
[1747242791832,20.01715755,174.85,174.81,28.09941231]
[1747242792344,20.01715755,174.85,174.82,28.09941231]
[1747242792536,20.01715755,174.85,174.81,28.09941231]
[1747242792911,5.71918787,174.85,174.82,28.09941231]
[1747242793732,5.71918787,174.85,174.81,28.09941231]
[1747242794113,20.01715755,174.85,174.81,28.09941231]
[1747242794329,0.5,174.84,174.78,1.6165]
[1747242794512,28.59941231,174.84,174.79,28.09941231]
[1747242794907,5.71984213,174.83,174.8,28.09941231]
[1747242795131,6.21954143,174.84,174.82,28.09941231]
[1747242795344,6.21954143,174.84,174.83,28.09941231]
[1747242795639,5.71787981,174.89,174.83,28.09941231]
[1747242795942,5.71787981,174.89,174.88,28.09941231]
[1747242796420,5.71787981,174.89,174.87,28.09941231]
[1747242796921,5.71755288,174.9,174.87,28.09941231]
[1747242797115,5.71755288,174.9,174.88,28.09941231]
[1747242797433,28.09941231,174.89,174.84,28.09941231]
[1747242797836,28.09941231,174.85,174.8,28.09941231]
[1747242798213,28.09941231,174.86,174.81,28.09941231]
[1747242799247,28.09941231,174.87,174.82,28.09941231]
[1747242799755,28.09941231,174.86,174.81,28.09941231]
[1747242800133,28.09941231,174.86,174.79,20.86]
[1747242800134,28.09941231,174.86,174.82,28.09941231]
[1747242800451,28.09941231,174.86,174.79,20.86]
[1747242800452,28.09941231,174.85,174.81,28.09941231]
[1747242801031,5.71951498,174.84,174.81,28.09941231]
[1747242801549,20.01830244,174.84,174.79,20.86]
[1747242801724,20.01830244,174.84,174.81,28.09941231]
[1747242802236,20.01830244,174.84,174.79,20.86]
[1747242802237,5.7188608,174.86,174.83,28.09941231]
[1747242802437,5.7188608,174.86,174.85,28.09941231]
[1747242803059,5.71820677,174.88,174.85,28.09941231]
[1747242804152,5.71820677,174.88,174.87,28.09941231]
[1747242805229,5.71820677,174.88,174.86,28.09941231]
[1747242806555,5.71820677,174.88,174.87,28.09941231]
[1747242807355,5.71820677,174.88,174.86,28.09941231]
[1747242808086,5.71820677,174.88,174.78,29.24309615]
[1747242808087,5.71820677,174.88,174.8,5.72058885]
[1747242808244,48.113136,174.88,174.83,28.09941231]
[1747242808941,28.09941231,174.86,174.78,26.0]
[1747242809147,5.71918787,174.85,174.82,28.09941231]
[1747242809566,5.71918787,174.85,174.78,74.71941231]
[1747242809755,5.71918787,174.85,174.82,28.09941231]
[1747242811381,5.7188608,174.86,174.82,28.09941231]
[1747242811550,5.71820677,174.88,174.85,28.09941231]
[1747242811747,5.71820677,174.88,174.87,28.09941231]
[1747242812647,5.717226,174.91,174.87,28.09941231]
[1747242813072,20.010291,174.91,174.87,28.09941231]
[1747242813262,20.010291,174.91,174.72,18.64964886]
[1747242813263,5.71853376,174.87,174.72,18.64964886]
[1747242813462,28.09941231,174.85,174.8,28.09941231]
[1747242813742,5.71853376,174.87,174.78,1.6222]
[1747242813743,48.11428048,174.87,174.82,28.09941231]
[1747242814755,28.09941231,174.86,174.82,28.09941231]
[1747242815062,48.11428048,174.87,174.82,28.09941231]
[1747242815251,5.71853376,174.87,174.83,28.09941231]
[1747242815948,5.71787981,174.89,174.86,28.09941231]
[1747242816551,5.71787981,174.89,174.87,28.09941231]
[1747242816749,5.71787981,174.89,174.86,28.09941231]
[1747242817882,5.71787981,174.89,174.82,20.54]
[1747242818100,5.71787981,174.89,174.75,10.0]
[1747242818246,28.09941231,174.84,174.79,28.09941231]
[1747242818558,28.09941231,174.85,174.79,28.09941231]
[1747242818760,5.71951498,174.84,174.8,28.09941231]
[1747242819072,5.71951498,174.84,174.82,28.09941231]
[1747242819960,5.71951498,174.84,174.81,28.09941231]
[1747242820164,5.71951498,174.84,174.83,28.09941231]
[1747242820356,143.91857061,174.87,174.83,28.09941231]
[1747242820561,5.71787981,174.89,174.86,28.09941231]
[1747242820765,20.01186012,174.9,174.86,28.09941231]
[1747242821057,48.11127243,174.9,174.85,28.09941231]
[1747242821652,20.01186012,174.9,174.85,28.09941231]
[1747242822583,48.11127243,174.9,174.85,28.09941231]
[1747242823081,48.11127243,174.9,174.8,26.20071074]
[1747242823082,28.09941231,174.89,174.8,20.48]
[1747242823271,166.29941231,174.89,174.83,28.09941231]
[1747242823769,28.09941231,174.88,174.83,28.09941231]
[1747242824162,28.09941231,174.87,174.77,33.7634]
[1747242824486,28.09941231,174.85,174.79,28.09941231]
[1747242824662,28.09941231,174.85,174.8,28.09941231]
[1747242825159,28.09941231,174.86,174.81,28.09941231]
[1747242825352,5.71918787,174.85,174.81,28.09941231]
[1747242826782,48.11656986,174.85,174.8,28.09941231]
[1747242827162,20.01715755,174.85,174.81,28.09941231]
[1747242827793,48.11656986,174.85,174.8,28.09941231]
[1747242828167,5.71918787,174.85,174.81,28.09941231]
[1747242828375,5.71918787,174.85,174.82,28.09941231]
[1747242828590,33.81860018,174.85,174.8,28.09941231]
[1747242829394,5.72049653,174.81,174.76,20.32]
[1747242829596,5.72049653,174.81,174.77,28.09941231]
[1747242830576,5.72049653,174.81,174.78,28.09941231]
[1747242831396,5.72049653,174.81,174.79,28.09941231]
[1747242831696,5.72049653,174.81,174.78,28.09941231]
[1747242832306,5.72049653,174.81,174.75,20.28]
[1747242832594,5.72049653,174.81,174.78,28.09941231]
[1747242832974,5.72049653,174.81,174.79,28.09941231]
[1747242833198,5.72049653,174.81,174.78,28.09941231]
[1747242833375,5.72049653,174.81,174.78,17.67210273]
[1747242834779,5.72016931,174.82,174.78,17.67210273]
[1747242836677,17.67210273,174.79,174.69,18.64964886]
[1747242836996,5.7218058,174.77,174.73,17.67210273]
[1747242837298,5.7218058,174.77,174.76,17.67210273]
[1747242837498,5.72082379,174.8,174.76,17.67210273]
[1747242837676,5.72082379,174.8,174.71,20.18]
[1747242837677,17.67210273,174.79,174.71,20.18]
[1747242837991,17.67210273,174.79,174.73,17.67210273]
[1747242838874,5.72147843,174.78,174.74,17.67210273]
[1747242839082,20.0251745,174.78,174.73,17.67210273]
[1747242839295,37.69727723,174.78,174.73,17.67210273]
[1747242839495,17.67210273,174.77,174.72,17.67210273]
[1747242839680,20.0251745,174.78,174.7,17.67210273]
[1747242839681,17.67210273,174.75,174.7,17.67210273]
[1747242839993,48.63256665,174.78,174.69,17.67210273]
[1747242839994,17.67210273,174.74,174.69,17.67210273]
[1747242841011,5.72311566,174.73,174.69,17.67210273]
[1747242841308,17.67210273,174.72,174.66,17.67210273]
[1747242841601,138.2,174.72,174.71,17.67210273]
[1747242841812,5.72311566,174.73,174.71,17.67210273]
[1747242841974,31.9778768,174.76,174.64,14.77146141]
[1747242841975,5.72246065,174.75,174.72,17.67210273]
[1747242842703,5.72246065,174.75,174.73,17.67210273]
[1747242842913,138.2,174.77,174.74,17.67210273]
[1747242843076,138.2,174.77,174.75,17.67210273]
[1747242843276,143.92186076,174.77,174.75,17.67210273]
[1747242843681,5.72154203,174.78,174.75,17.67210273]
[1747242843888,5.72154203,174.78,174.76,17.67210273]
[1747242844286,5.72154203,174.78,174.71,5.72354966]
[1747242844287,5.72154203,174.78,174.75,17.67210273]
[1747242845004,5.72154203,174.78,174.7,8.2103]
[1747242845203,23.39364476,174.78,174.74,17.67210273]
[1747242846014,23.39364476,174.78,174.75,17.67210273]
[1747242846015,5.72154203,174.78,174.75,17.67210273]
[1747242846195,5.22154203,174.78,174.75,17.67210273]
[1747242846507,22.89364476,174.78,174.7,13.93430096]
[1747242846699,22.89364476,174.78,174.73,17.67210273]
[1747242847319,5.22154203,174.78,174.74,17.67210273]
[1747242848106,37.19734083,174.78,174.7,8.2103]
[1747242848279,17.67210273,174.75,174.66,7.6264]
[1747242848482,17.67210273,174.73,174.69,17.67210273]
[1747242848675,17.67210273,174.74,174.69,17.67210273]
[1747242848991,17.67210273,174.75,174.7,17.67210273]
[1747242849389,5.72278814,174.74,174.7,17.67210273]
[1747242849597,5.72278814,174.74,174.71,17.67210273]
[1747242850689,5.72278814,174.74,174.72,17.67210273]
[1747242851409,5.72213321,174.76,174.73,17.67210273]
[1747242851788,5.72213321,174.76,174.74,17.67210273]
[1747242851988,5.72213321,174.76,174.73,17.67210273]
[1747242852288,5.72213321,174.76,174.72,17.67210273]
[1747242853095,37.69956896,174.76,174.71,17.67210273]
[1747242854500,20.02746623,174.76,174.72,17.67210273]
[1747242854809,5.72213321,174.76,174.72,17.67210273]
[1747242854990,5.72213321,174.76,174.73,17.67210273]
[1747242855505,5.72213321,174.76,174.74,17.67210273]
[1747242856815,158.4,174.81,174.75,17.67210273]
[1747242856991,158.4,174.81,174.73,5.72310343]
[1747242856992,5.72082379,174.8,174.77,17.67210273]
[1747242857586,5.72082379,174.8,174.76,17.67210273]
[1747242858586,37.69498601,174.8,174.73,7.6432]
[1747242858803,17.67210273,174.79,174.74,17.67210273]
[1747242859008,17.67210273,174.78,174.73,17.67210273]
[1747242859910,20.02746623,174.76,174.71,17.67210273]
[1747242860115,37.69956896,174.76,174.71,17.67210273]
[1747242860788,5.72213321,174.76,174.73,17.67210273]
[1747242861288,5.72147843,174.78,174.75,17.67210273]
[1747242861505,5.72147843,174.78,174.76,17.67210273]
[1747242861706,5.72147843,174.78,174.75,17.67210273]
[1747242861904,5.72147843,174.78,174.7,19.86]
[1747242862083,17.67210273,174.8,174.7,19.86]
[1747242862084,5.72115109,174.79,174.75,17.67210273]
[1747242862508,5.72115109,174.79,174.76,17.67210273]
[1747242862915,5.72115109,174.79,174.71,5.72364939]
[1747242862916,5.72115109,174.79,174.75,17.67210273]
[1747242863087,5.72115109,174.79,174.71,5.72364939]
[1747242863088,20.02402882,174.79,174.7,25.58406772]
[1747242863287,5.72115109,174.79,174.76,17.67210273]
[1747242863905,5.72092142,174.8,174.78,17.67210273]
[1747242865511,17.67210273,174.79,174.75,17.67210273]
[1747242865712,17.67210273,174.79,174.74,17.67210273]
[1747242866015,17.67210273,174.79,174.75,17.67210273]
[1747242866202,5.72147843,174.78,174.75,17.67210273]
[1747242866398,23.39358116,174.78,174.73,17.67210273]
[1747242866738,5.72147843,174.78,174.76,17.67210273]
[1747242867594,5.72112852,174.8,174.76,17.67210273]
[1747242867793,5.71951498,174.84,174.79,17.67210273]
[1747242868005,5.71951498,174.84,174.81,17.67210273]
[1747242868422,5.71951498,174.84,174.82,17.67210273]
[1747242868724,143.91925066,174.85,174.83,17.67210273]
[1747242868890,143.91925066,174.85,174.78,25.0381326]
[1747242868891,5.71853376,174.87,174.84,17.67210273]
[1747242869626,48.27241337,174.87,174.82,28.2575452]
[1747242869792,76.8650822,174.87,174.78,1.6446]
[1747242869989,76.8650822,174.87,174.71,19.82]
[1747242869990,28.2575452,174.79,174.74,29.8807452]
[1747242870194,28.2575452,174.79,174.74,1.6232]
[1747242870195,5.72147843,174.78,174.74,1.6232]
[1747242870425,5.72147843,174.78,174.74,29.8807452]
[1747242870721,14.30177497,174.81,174.77,28.2575452]
[1747242870722,5.72082379,174.8,174.77,28.2575452]
[1747242871292,5.72082379,174.8,174.78,0.39855072]
[1747242872311,5.72060035,174.81,174.78,0.39855072]
[1747242872494,14.2984216,174.85,174.78,0.39855072]
[1747242872495,5.71951498,174.84,174.79,28.2575452]
[1747242872700,5.71951498,174.84,174.8,28.2575452]
[1747242872917,5.71951498,174.84,174.8,28.65609592]
[1747242873194,5.71951498,174.84,174.81,28.2575452]
[1747242874021,5.71951498,174.84,174.82,28.2575452]
[1747242874237,5.71951498,174.84,174.83,28.2575452]
[1747242874411,5.71918787,174.85,174.83,28.2575452]
[1747242875030,5.71918787,174.85,174.84,28.2575452]
[1747242875244,5.71918787,174.85,174.83,28.2575452]
[1747242875438,143.91886421,174.86,174.83,28.2575452]
[1747242875612,143.91886421,174.86,174.84,28.2575452]
[1747242875936,5.71787981,174.89,174.85,28.2575452]
[1747242876113,5.71787981,174.89,174.86,28.2575452]
[1747242876728,5.71755288,174.9,174.86,28.2575452]
[1747242877243,28.2575452,174.89,174.84,28.2575452]
[1747242877536,28.2575452,174.86,174.81,19.86]
[1747242877730,20.01143509,174.9,174.81,19.86]
[1747242877731,28.2575452,174.85,174.81,19.86]
[1747242878103,28.2575452,174.85,174.8,29.8386452]
[1747242878305,28.2575452,174.84,174.8,1.5811]
[1747242878523,138.2,174.89,174.8,1.5811]
[1747242878735,20.01143509,174.9,174.81,28.2575452]
[1747242878736,28.2575452,174.86,174.81,28.2575452]